[Event "Titled Tuesday Blitz August 31 2021"]
[White "deribas12345"]
[Black "Haykoooo0o"]
[WhiteElo "2581"]
[BlackElo "2410"]
[Result "1-0"]
[Round "08"]
[TimeControl "180+1"]
[Date "2021.08.31"]
[WhiteClock "0:00:04"]
[BlackClock "0:00:01"]

1. d4 {[%clk 0:03:00]}  d5 {[%clk 0:02:48]} 2. c4 {[%clk 0:03:00]}  e6 {[%clk 0:02:48]} 3. Nf3 {[%clk 0:03:01]}  Nf6 {[%clk 0:02:48]} 4. g3 {[%clk 0:03:01]}  Nbd7 {[%clk 0:02:48]} 5. Bg2 {[%clk 0:03:02]}  c6 {[%clk 0:02:48]} 6. O-O {[%clk 0:03:02]}  Be7 {[%clk 0:02:49]} 7. b3 {[%clk 0:03:02]}  O-O {[%clk 0:02:50]} 8. Bb2 {[%clk 0:03:02]}  b6 {[%clk 0:02:50]} 9. Nc3 {[%clk 0:03:01]}  Bb7 {[%clk 0:02:51]} 10. Rc1 {[%clk 0:03:01]}  Rc8 {[%clk 0:02:51]} 11. cxd5 {[%clk 0:03:02]}  cxd5 {[%clk 0:02:39]} 12. a3 {[%clk 0:02:59]}  Ba6 {[%clk 0:02:35]} 13. b4 {[%clk 0:02:58]}  Bc4 {[%clk 0:02:30]} 14. Nd2 {[%clk 0:02:53]}  b5 {[%clk 0:02:00]} 15. Nxc4 {[%clk 0:02:52]}  bxc4 {[%clk 0:01:49]} 16. e4 {[%clk 0:02:52]}  Nb6 {[%clk 0:01:47]} 17. e5 {[%clk 0:02:39]}  Nfd7 {[%clk 0:01:47]} 18. f4 {[%clk 0:02:39]}  g6 {[%clk 0:01:39]} 19. g4 {[%clk 0:02:37]}  Re8 {[%clk 0:01:33]} 20. Rc2 {[%clk 0:02:36]}  Nb8 {[%clk 0:01:29]} 21. f5 {[%clk 0:02:34]}  Bf8 {[%clk 0:01:25]} 22. Bc1 {[%clk 0:02:31]}  Qd7 {[%clk 0:01:19]} 23. fxg6 {[%clk 0:02:25]}  fxg6 {[%clk 0:01:17]} 24. Rcf2 {[%clk 0:02:24]}  Bg7 {[%clk 0:01:13]} 25. Bg5 {[%clk 0:02:19]}  Rf8 {[%clk 0:01:12]} 26. Bf6 {[%clk 0:02:20]}  Rf7 {[%clk 0:01:06]} 27. g5 {[%clk 0:02:20]}  Rcf8 {[%clk 0:01:02]} 28. Bh3 {[%clk 0:02:20]}  Nc6 {[%clk 0:00:57]} 29. Qg4 {[%clk 0:02:19]}  Re8 {[%clk 0:00:54]} 30. Bxg7 {[%clk 0:02:15]}  Rxf2 {[%clk 0:00:50]} 31. Rxf2 {[%clk 0:02:15]}  Kxg7 {[%clk 0:00:46]} 32. Rf6 {[%clk 0:02:14]}  Nd8 {[%clk 0:00:38]} 33. Qh4 {[%clk 0:02:10]}  Nf7 {[%clk 0:00:31]} 34. Ne2 {[%clk 0:02:03]}  c3 {[%clk 0:00:20]} 35. Nxc3 {[%clk 0:01:56]}  Qc7 {[%clk 0:00:17]} 36. Rf3 {[%clk 0:01:43]}  Qe7 {[%clk 0:00:12]} 37. Rf6 {[%clk 0:01:30]}  Qc7 {[%clk 0:00:12]} 38. Ne2 {[%clk 0:01:31]}  Qc2 {[%clk 0:00:09]} 39. Bf1 {[%clk 0:01:08]}  Qd2 {[%clk 0:00:06]} 40. Rxf7+ {[%clk 0:01:03]}  Kxf7 {[%clk 0:00:06]} 41. Qxh7+ {[%clk 0:01:03]}  Kf8 {[%clk 0:00:06]} 42. Qxg6 {[%clk 0:00:50]}  Qe3+ {[%clk 0:00:05]} 43. Kg2 {[%clk 0:00:50]}  Ke7 {[%clk 0:00:05]} 44. Qf6+ {[%clk 0:00:26]}  Kd7 {[%clk 0:00:05]} 45. Nf4 {[%clk 0:00:27]}  Qe4+ {[%clk 0:00:04]} 46. Kg3 {[%clk 0:00:23]}  Qe3+ {[%clk 0:00:04]} 47. Kg4 {[%clk 0:00:24]}  Qg1+ {[%clk 0:00:04]} 48. Bg2 {[%clk 0:00:24]}  Qd1+ {[%clk 0:00:03]} 49. Bf3 {[%clk 0:00:15]}  Qxd4 {[%clk 0:00:03]} 50. g6 {[%clk 0:00:12]}  Nc4 {[%clk 0:00:02]} 51. Kg5 {[%clk 0:00:05]}  Qxe5+ {[%clk 0:00:01]} 52. Qf5 {[%clk 0:00:04]} 1-0


[Site "https://www.chess.com"]

[Event "Titled Tuesday Blitz August 31 2021"]
[White "Aditya Mittal"]
[Black "Potapova, Margarita"]
[WhiteFideId "35042025"]
[BlackFideId "14126869"]
[WhiteElo "2171"]
[BlackElo "2214"]
[Result "1-0"]
[Round "09"]
[TimeControl "180+1"]
[Date "2021.08.31"]
[WhiteClock "0:01:30"]
[BlackClock "0:00:07"]

1. d4 {[%clk 0:03:00]}  Nf6 {[%clk 0:02:58]} 2. c4 {[%clk 0:03:01]}  e6 {[%clk 0:02:59]} 3. Nc3 {[%clk 0:03:01]}  Bb4 {[%clk 0:02:58]} 4. f3 {[%clk 0:03:02]}  d5 {[%clk 0:02:55]} 5. a3 {[%clk 0:03:02]}  Be7 {[%clk 0:02:54]} 6. e4 {[%clk 0:03:02]}  dxe4 {[%clk 0:02:55]} 7. fxe4 {[%clk 0:03:03]}  c5 {[%clk 0:02:55]} 8. d5 {[%clk 0:03:04]}  exd5 {[%clk 0:02:56]} 9. exd5 {[%clk 0:03:04]}  O-O {[%clk 0:02:56]} 10. Nf3 {[%clk 0:03:05]}  Re8 {[%clk 0:02:54]} 11. Be2 {[%clk 0:03:05]}  a6 {[%clk 0:02:11]} 12. O-O {[%clk 0:03:04]}  Bd6 {[%clk 0:02:10]} 13. Bg5 {[%clk 0:03:05]}  Nbd7 {[%clk 0:02:10]} 14. Bd3 {[%clk 0:03:01]}  Qc7 {[%clk 0:02:08]} 15. Qd2 {[%clk 0:02:58]}  Ng4 {[%clk 0:01:56]} 16. h3 {[%clk 0:02:51]}  Nge5 {[%clk 0:01:54]} 17. Rae1 {[%clk 0:02:48]}  Nxf3+ {[%clk 0:01:52]} 18. Rxf3 {[%clk 0:02:49]}  Ne5 {[%clk 0:01:50]} 19. Rfe3 {[%clk 0:02:47]}  Bd7 {[%clk 0:01:47]} 20. Ne4 {[%clk 0:02:38]}  Nxd3 {[%clk 0:01:21]} 21. Nxd6 {[%clk 0:02:12]}  Qxd6 {[%clk 0:00:47]} 22. Qxd3 {[%clk 0:02:10]}  b5 {[%clk 0:00:42]} 23. Be7 {[%clk 0:02:03]}  Qf4 {[%clk 0:00:41]} 24. Re4 {[%clk 0:01:56]}  Qc7 {[%clk 0:00:28]} 25. d6 {[%clk 0:01:56]}  Qc6 {[%clk 0:00:27]} 26. Qg3 {[%clk 0:01:56]}  Bf5 {[%clk 0:00:24]} 27. Re5 {[%clk 0:01:55]}  Bg6 {[%clk 0:00:23]} 28. h4 {[%clk 0:01:50]}  f6 {[%clk 0:00:21]} 29. R5e3 {[%clk 0:01:37]}  Bf7 {[%clk 0:00:16]} 30. Bxf6 {[%clk 0:01:32]}  g6 {[%clk 0:00:13]} 31. Re7 {[%clk 0:01:33]}  Rxe7 {[%clk 0:00:09]} 32. Rxe7 {[%clk 0:01:33]}  Re8 {[%clk 0:00:09]} 33. Qf4 {[%clk 0:01:32]}  bxc4 {[%clk 0:00:07]} 34. Qh6 {[%clk 0:01:30]} 1-0


[Site "https://www.chess.com"]

[Event "Titled Tuesday Blitz August 31 2021"]
[White "Aldokhin, Ivan"]
[Black "Krivonosov, Oleg"]
[WhiteFideId "24115720"]
[BlackFideId "11600349"]
[WhiteElo "2306"]
[BlackElo "2469"]
[Result "1-0"]
[Round "09"]
[TimeControl "180+1"]
[Date "2021.08.31"]
[WhiteClock "0:00:22"]
[BlackClock "0:00:19"]

1. e4 {[%clk 0:02:59]}  e5 {[%clk 0:02:59]} 2. Nf3 {[%clk 0:03:00]}  Nc6 {[%clk 0:02:58]} 3. Bb5 {[%clk 0:03:00]}  Nf6 {[%clk 0:02:57]} 4. O-O {[%clk 0:03:00]}  Nxe4 {[%clk 0:02:56]} 5. Re1 {[%clk 0:03:00]}  Nd6 {[%clk 0:02:56]} 6. Bxc6 {[%clk 0:03:01]}  dxc6 {[%clk 0:02:55]} 7. Nxe5 {[%clk 0:03:02]}  Be7 {[%clk 0:02:54]} 8. b3 {[%clk 0:03:03]}  O-O {[%clk 0:02:53]} 9. Bb2 {[%clk 0:03:04]}  Re8 {[%clk 0:02:50]} 10. Nc3 {[%clk 0:03:03]}  Bf8 {[%clk 0:02:49]} 11. Ne2 {[%clk 0:03:00]}  f6 {[%clk 0:02:44]} 12. Nd3 {[%clk 0:02:50]}  Be6 {[%clk 0:02:35]} 13. Ng3 {[%clk 0:02:41]}  Bf7 {[%clk 0:02:25]} 14. Qf3 {[%clk 0:02:35]}  Qd7 {[%clk 0:02:15]} 15. Nc5 {[%clk 0:02:33]}  Qc8 {[%clk 0:02:13]} 16. Re3 {[%clk 0:02:07]}  Rxe3 {[%clk 0:02:11]} 17. fxe3 {[%clk 0:02:06]}  b6 {[%clk 0:02:08]} 18. Nce4 {[%clk 0:02:04]}  Nxe4 {[%clk 0:02:00]} 19. Nxe4 {[%clk 0:02:01]}  Qe6 {[%clk 0:01:53]} 20. Rf1 {[%clk 0:01:55]}  Bg6 {[%clk 0:01:47]} 21. Ng3 {[%clk 0:01:46]}  Re8 {[%clk 0:01:36]} 22. Nf5 {[%clk 0:01:32]}  Bxf5 {[%clk 0:01:18]} 23. Qxf5 {[%clk 0:01:33]}  Qxf5 {[%clk 0:01:18]} 24. Rxf5 {[%clk 0:01:34]}  Kf7 {[%clk 0:01:16]} 25. Kf2 {[%clk 0:01:33]}  Ke6 {[%clk 0:01:15]} 26. Rf3 {[%clk 0:01:31]}  Bd6 {[%clk 0:01:12]} 27. h4 {[%clk 0:01:28]}  h5 {[%clk 0:01:10]} 28. e4 {[%clk 0:01:25]}  c5 {[%clk 0:01:08]} 29. Rf5 {[%clk 0:01:23]}  Rh8 {[%clk 0:01:06]} 30. Ke3 {[%clk 0:01:21]}  Be7 {[%clk 0:01:05]} 31. c3 {[%clk 0:01:12]}  g6 {[%clk 0:01:02]} 32. Rf1 {[%clk 0:01:12]}  f5 {[%clk 0:01:01]} 33. d4 {[%clk 0:01:00]}  fxe4 {[%clk 0:00:51]} 34. Kxe4 {[%clk 0:00:59]}  c6 {[%clk 0:00:48]} 35. c4 {[%clk 0:00:53]}  cxd4 {[%clk 0:00:46]} 36. Bxd4 {[%clk 0:00:54]}  Rf8 {[%clk 0:00:46]} 37. Rh1 {[%clk 0:00:43]}  Bd6 {[%clk 0:00:40]} 38. Be3 {[%clk 0:00:42]}  Bc5 {[%clk 0:00:33]} 39. Re1 {[%clk 0:00:35]}  Bb4 {[%clk 0:00:28]} 40. Rd1 {[%clk 0:00:30]}  Be7 {[%clk 0:00:27]} 41. Bf4 {[%clk 0:00:26]}  Rd8 {[%clk 0:00:23]} 42. Rh1 {[%clk 0:00:23]}  Rd4+ {[%clk 0:00:19]} 43. Kxd4 {[%clk 0:00:22]} 1-0


[Site "https://www.chess.com"]

[Event "Titled Tuesday Blitz August 31 2021"]
[White "Bernadskiy, Vitaliy"]
[Black "Kollars, Dmitrij"]
[WhiteFideId "14100371"]
[BlackFideId "12909572"]
[WhiteElo "2510"]
[BlackElo "2576"]
[Result "1-0"]
[Round "09"]
[TimeControl "180+1"]
[Date "2021.08.31"]
[WhiteClock "0:00:23"]
[BlackClock "0:00:16"]

1. e4 {[%clk 0:03:00]}  e6 {[%clk 0:02:56]} 2. d4 {[%clk 0:02:59]}  d5 {[%clk 0:02:56]} 3. Nc3 {[%clk 0:02:58]}  Nf6 {[%clk 0:02:56]} 4. Bg5 {[%clk 0:02:57]}  dxe4 {[%clk 0:02:55]} 5. Nxe4 {[%clk 0:02:56]}  Be7 {[%clk 0:02:55]} 6. Bxf6 {[%clk 0:02:56]}  gxf6 {[%clk 0:02:53]} 7. Nf3 {[%clk 0:02:55]}  b6 {[%clk 0:02:37]} 8. Bb5+ {[%clk 0:02:53]}  c6 {[%clk 0:02:36]} 9. Bc4 {[%clk 0:02:49]}  Bb7 {[%clk 0:02:33]} 10. Qe2 {[%clk 0:02:48]}  Qc7 {[%clk 0:02:32]} 11. O-O-O {[%clk 0:02:47]}  Nd7 {[%clk 0:02:32]} 12. Kb1 {[%clk 0:02:41]}  O-O-O {[%clk 0:02:31]} 13. Ba6 {[%clk 0:02:40]}  h5 {[%clk 0:02:25]} 14. Bxb7+ {[%clk 0:02:37]}  Kxb7 {[%clk 0:02:26]} 15. Ng3 {[%clk 0:02:23]}  Bd6 {[%clk 0:02:09]} 16. Nh4 {[%clk 0:02:18]}  Rdg8 {[%clk 0:02:02]} 17. Nxh5 {[%clk 0:02:15]}  Rg5 {[%clk 0:01:57]} 18. g4 {[%clk 0:02:13]}  Bxh2 {[%clk 0:01:56]} 19. Nf3 {[%clk 0:01:59]}  Rgxh5 {[%clk 0:01:31]} 20. gxh5 {[%clk 0:01:59]}  Bf4 {[%clk 0:01:32]} 21. c4 {[%clk 0:01:53]}  Qd6 {[%clk 0:01:24]} 22. d5 {[%clk 0:01:19]}  exd5 {[%clk 0:01:25]} 23. cxd5 {[%clk 0:01:19]}  c5 {[%clk 0:01:25]} 24. Nd2 {[%clk 0:01:12]}  Qxd5 {[%clk 0:01:17]} 25. Nc4 {[%clk 0:01:01]}  Qc6 {[%clk 0:00:48]} 26. Qe7 {[%clk 0:00:53]}  Bc7 {[%clk 0:00:30]} 27. h6 {[%clk 0:00:41]}  Ne5 {[%clk 0:00:19]} 28. Nxe5 {[%clk 0:00:26]}  fxe5 {[%clk 0:00:20]} 29. Qxf7 {[%clk 0:00:25]}  Rxh6 {[%clk 0:00:19]} 30. Rxh6 {[%clk 0:00:25]}  Qxh6 {[%clk 0:00:20]} 31. Qd5+ {[%clk 0:00:25]}  Kb8 {[%clk 0:00:19]} 32. a3 {[%clk 0:00:24]}  Qh2 {[%clk 0:00:16]} 33. Rh1 {[%clk 0:00:23]} 1-0


[Site "https://www.chess.com"]

[Event "Titled Tuesday Blitz August 31 2021"]
[White "Blomqvist, Erik"]
[Black "Jarovinsky, Alexey"]
[WhiteFideId "1709437"]
[BlackFideId "14115131"]
[WhiteElo "2460"]
[BlackElo "2446"]
[Result "0-1"]
[Round "09"]
[TimeControl "180+1"]
[Date "2021.08.31"]
[WhiteClock "0:00:02"]
[BlackClock "0:00:09"]

1. e4 {[%clk 0:03:00]}  Nc6 {[%clk 0:02:39]} 2. d4 {[%clk 0:02:58]}  d5 {[%clk 0:02:38]} 3. e5 {[%clk 0:02:58]}  Bf5 {[%clk 0:02:38]} 4. c3 {[%clk 0:02:59]}  f6 {[%clk 0:02:37]} 5. f4 {[%clk 0:02:54]}  e6 {[%clk 0:02:37]} 6. Nd2 {[%clk 0:02:53]}  Nh6 {[%clk 0:02:36]} 7. Ndf3 {[%clk 0:02:51]}  Be7 {[%clk 0:02:36]} 8. Bd3 {[%clk 0:02:51]}  O-O {[%clk 0:02:35]} 9. Ne2 {[%clk 0:02:50]}  Qe8 {[%clk 0:02:20]} 10. O-O {[%clk 0:02:40]}  fxe5 {[%clk 0:01:58]} 11. fxe5 {[%clk 0:02:36]}  Bxd3 {[%clk 0:01:47]} 12. Qxd3 {[%clk 0:02:37]}  Nf5 {[%clk 0:01:46]} 13. Bd2 {[%clk 0:02:11]}  Na5 {[%clk 0:01:39]} 14. b3 {[%clk 0:01:55]}  b6 {[%clk 0:01:37]} 15. Nf4 {[%clk 0:01:37]}  Qd7 {[%clk 0:01:35]} 16. Rf2 {[%clk 0:01:20]}  c5 {[%clk 0:01:34]} 17. Raf1 {[%clk 0:01:20]}  cxd4 {[%clk 0:01:32]} 18. cxd4 {[%clk 0:01:21]}  Nc6 {[%clk 0:01:30]} 19. Nh5 {[%clk 0:01:02]}  Qe8 {[%clk 0:00:56]} 20. g4 {[%clk 0:00:48]}  Nh4 {[%clk 0:00:32]} 21. Ng5 {[%clk 0:00:38]}  Qg6 {[%clk 0:00:32]} 22. Rxf8+ {[%clk 0:00:22]}  Bxf8 {[%clk 0:00:23]} 23. Qxg6 {[%clk 0:00:19]}  hxg6 {[%clk 0:00:21]} 24. Nf4 {[%clk 0:00:18]}  Nxd4 {[%clk 0:00:20]} 25. Be3 {[%clk 0:00:18]}  Bc5 {[%clk 0:00:16]} 26. Kf2 {[%clk 0:00:13]}  Rf8 {[%clk 0:00:15]} 27. Kg3 {[%clk 0:00:08]}  Nhf5+ {[%clk 0:00:12]} 28. gxf5 {[%clk 0:00:04]}  Nxf5+ {[%clk 0:00:13]} 29. Kh3 {[%clk 0:00:05]}  Nxe3 {[%clk 0:00:12]} 30. Rf3 {[%clk 0:00:05]}  Rf5 {[%clk 0:00:11]} 31. Ngxe6 {[%clk 0:00:03]}  g5 {[%clk 0:00:10]} 32. Nxc5 {[%clk 0:00:02]}  g4+ {[%clk 0:00:10]} 33. Kg3 {[%clk 0:00:01]}  gxf3 {[%clk 0:00:10]} 34. Kxf3 {[%clk 0:00:01]}  bxc5 {[%clk 0:00:09]} 35. Kxe3 {[%clk 0:00:02]}  Rxe5+ {[%clk 0:00:09]} 36. Kf3 {[%clk 0:00:02]}  g5 {[%clk 0:00:09]} 37. Ng6 {[%clk 0:00:02]}  Re6 {[%clk 0:00:09]} 0-1


[Site "https://www.chess.com"]

[Event "Titled Tuesday Blitz August 31 2021"]
[White "Boyer, Mahel"]
[Black "Zubov, Alexander"]
[WhiteFideId "45102422"]
[BlackFideId "14109409"]
[WhiteElo "2328"]
[BlackElo "2740"]
[Result "0-1"]
[Round "09"]
[TimeControl "180+1"]
[Date "2021.08.31"]
[WhiteClock "0:00:08"]
[BlackClock "0:00:04"]

1. d4 {[%clk 0:03:00]}  d5 {[%clk 0:02:59]} 2. c4 {[%clk 0:03:01]}  c6 {[%clk 0:02:59]} 3. cxd5 {[%clk 0:03:00]}  cxd5 {[%clk 0:02:59]} 4. Bf4 {[%clk 0:03:01]}  Nf6 {[%clk 0:02:59]} 5. Nc3 {[%clk 0:03:01]}  Nc6 {[%clk 0:02:59]} 6. e3 {[%clk 0:03:01]}  a6 {[%clk 0:02:59]} 7. Be2 {[%clk 0:03:01]}  Bf5 {[%clk 0:02:51]} 8. g4 {[%clk 0:03:01]}  Be6 {[%clk 0:02:51]} 9. Bf3 {[%clk 0:02:57]}  g6 {[%clk 0:02:47]} 10. g5 {[%clk 0:02:54]}  Nd7 {[%clk 0:02:45]} 11. Bxd5 {[%clk 0:02:49]}  Bxd5 {[%clk 0:02:44]} 12. Nxd5 {[%clk 0:02:50]}  Qa5+ {[%clk 0:02:44]} 13. Nc3 {[%clk 0:02:51]}  e5 {[%clk 0:02:44]} 14. dxe5 {[%clk 0:02:50]}  Ndxe5 {[%clk 0:02:43]} 15. Kf1 {[%clk 0:02:47]}  Rd8 {[%clk 0:02:32]} 16. Qb3 {[%clk 0:02:47]}  Bg7 {[%clk 0:02:31]} 17. Kg2 {[%clk 0:02:25]}  O-O {[%clk 0:02:27]} 18. Nge2 {[%clk 0:02:26]}  Nd3 {[%clk 0:02:14]} 19. h4 {[%clk 0:02:26]}  Qf5 {[%clk 0:02:08]} 20. Qxb7 {[%clk 0:02:11]}  Nxf4+ {[%clk 0:01:42]} 21. Nxf4 {[%clk 0:02:08]}  Qg4+ {[%clk 0:01:42]} 22. Kf1 {[%clk 0:02:07]}  Bxc3 {[%clk 0:01:27]} 23. Qxc6 {[%clk 0:01:49]}  Bxb2 {[%clk 0:01:26]} 24. Rb1 {[%clk 0:01:48]}  Rd2 {[%clk 0:01:24]} 25. Qe4 {[%clk 0:01:33]}  Rfd8 {[%clk 0:01:13]} 26. Re1 {[%clk 0:01:15]}  Rd1 {[%clk 0:00:27]} 27. f3 {[%clk 0:01:15]}  Qd7 {[%clk 0:00:08]} 28. Kg2 {[%clk 0:00:57]}  Rd2+ {[%clk 0:00:06]} 29. Kg3 {[%clk 0:00:55]}  Ba3 {[%clk 0:00:04]} 30. Re2 {[%clk 0:00:29]}  Rxe2 {[%clk 0:00:03]} 31. Nxe2 {[%clk 0:00:30]}  Bd6+ {[%clk 0:00:03]} 32. f4 {[%clk 0:00:30]}  Bc5 {[%clk 0:00:04]} 33. Qf3 {[%clk 0:00:27]}  Qd2 {[%clk 0:00:03]} 34. Rc1 {[%clk 0:00:21]}  Bxe3 {[%clk 0:00:03]} 35. Rc7 {[%clk 0:00:18]}  Re8 {[%clk 0:00:03]} 36. Qc6 {[%clk 0:00:09]}  Qe1+ {[%clk 0:00:03]} 37. Kh3 {[%clk 0:00:06]}  Qf1+ {[%clk 0:00:03]} 38. Qg2 {[%clk 0:00:06]}  Qd1 {[%clk 0:00:03]} 39. Qc6 {[%clk 0:00:06]}  Rf8 {[%clk 0:00:04]} 40. Qf3 {[%clk 0:00:06]}  Qd2 {[%clk 0:00:03]} 41. Re7 {[%clk 0:00:06]}  Bc5 {[%clk 0:00:03]} 42. Re5 {[%clk 0:00:06]}  Bd6 {[%clk 0:00:03]} 43. Rd5 {[%clk 0:00:07]}  Qb4 {[%clk 0:00:04]} 44. Rd4 {[%clk 0:00:07]}  Qc5 {[%clk 0:00:03]} 45. Rd5 {[%clk 0:00:07]}  Qc7 {[%clk 0:00:03]} 46. f5 {[%clk 0:00:08]}  Re8 {[%clk 0:00:03]} 47. fxg6 {[%clk 0:00:07]}  hxg6 {[%clk 0:00:04]} 48. h5 {[%clk 0:00:07]}  Bc5 {[%clk 0:00:04]} 49. Ng3 {[%clk 0:00:07]}  Re3 {[%clk 0:00:04]} 50. Qg4 {[%clk 0:00:07]}  Qe7 {[%clk 0:00:04]} 51. hxg6 {[%clk 0:00:07]}  fxg6 {[%clk 0:00:05]} 52. Rd7 {[%clk 0:00:07]}  Qe6 {[%clk 0:00:04]} 53. Qxe6+ {[%clk 0:00:07]}  Rxe6 {[%clk 0:00:05]} 54. Kg4 {[%clk 0:00:07]}  Bd6 {[%clk 0:00:05]} 55. Ne2 {[%clk 0:00:06]}  Be5 {[%clk 0:00:06]} 56. Nd4 {[%clk 0:00:05]}  Rb6 {[%clk 0:00:05]} 57. Rd8+ {[%clk 0:00:05]}  Kf7 {[%clk 0:00:05]} 58. Rd7+ {[%clk 0:00:06]}  Ke8 {[%clk 0:00:06]} 59. Rd5 {[%clk 0:00:05]}  Bg7 {[%clk 0:00:06]} 60. Nb3 {[%clk 0:00:05]}  Rb4+ {[%clk 0:00:06]} 61. Kf3 {[%clk 0:00:05]}  Ke7 {[%clk 0:00:06]} 62. Ra5 {[%clk 0:00:05]}  Rb6 {[%clk 0:00:07]} 63. Nc5 {[%clk 0:00:06]}  Bd4 {[%clk 0:00:07]} 64. Nb3 {[%clk 0:00:06]}  Bg1 {[%clk 0:00:07]} 65. Re5+ {[%clk 0:00:06]}  Kd6 {[%clk 0:00:07]} 66. Re2 {[%clk 0:00:05]}  Kd5 {[%clk 0:00:06]} 67. Rd2+ {[%clk 0:00:05]}  Kc4 {[%clk 0:00:06]} 68. Rc2+ {[%clk 0:00:03]}  Kd3 {[%clk 0:00:04]} 69. Rg2 {[%clk 0:00:04]}  Rb5 {[%clk 0:00:03]} 70. Rxg1 {[%clk 0:00:04]}  Rf5+ {[%clk 0:00:03]} 71. Kg4 {[%clk 0:00:05]}  Rf2 {[%clk 0:00:04]} 72. Rg3+ {[%clk 0:00:05]}  Kc4 {[%clk 0:00:04]} 73. Rf3 {[%clk 0:00:05]}  Rxa2 {[%clk 0:00:04]} 74. Nc1 {[%clk 0:00:05]}  Ra1 {[%clk 0:00:04]} 75. Rf4+ {[%clk 0:00:05]}  Kd5 {[%clk 0:00:04]} 76. Nb3 {[%clk 0:00:05]}  Ra3 {[%clk 0:00:04]} 77. Nd2 {[%clk 0:00:04]}  Rd3 {[%clk 0:00:03]} 78. Nc4 {[%clk 0:00:04]}  Rd4 {[%clk 0:00:03]} 79. Nb6+ {[%clk 0:00:05]}  Kc5 {[%clk 0:00:03]} 80. Na4+ {[%clk 0:00:05]}  Kc4 {[%clk 0:00:03]} 81. Rxd4+ {[%clk 0:00:03]}  Kxd4 {[%clk 0:00:03]} 82. Kf4 {[%clk 0:00:04]}  Kd5 {[%clk 0:00:04]} 83. Nb2 {[%clk 0:00:03]}  Kd4 {[%clk 0:00:04]} 84. Na4 {[%clk 0:00:03]}  a5 {[%clk 0:00:04]} 85. Nb6 {[%clk 0:00:03]}  Kc5 {[%clk 0:00:05]} 86. Ke5 {[%clk 0:00:04]}  Kxb6 {[%clk 0:00:05]} 87. Kf6 {[%clk 0:00:03]}  a4 {[%clk 0:00:05]} 88. Kxg6 {[%clk 0:00:04]}  a3 {[%clk 0:00:06]} 89. Kh7 {[%clk 0:00:05]}  a2 {[%clk 0:00:07]} 90. g6 {[%clk 0:00:06]}  a1=Q {[%clk 0:00:07]} 91. g7 {[%clk 0:00:07]}  Qh1+ {[%clk 0:00:07]} 92. Kg8 {[%clk 0:00:07]}  Kc7 {[%clk 0:00:06]} 93. Kf8 {[%clk 0:00:08]}  Qf3+ {[%clk 0:00:06]} 94. Ke7 {[%clk 0:00:08]}  Qg4 {[%clk 0:00:06]} 95. Kf8 {[%clk 0:00:09]}  Qf5+ {[%clk 0:00:05]} 96. Ke7 {[%clk 0:00:09]}  Qg6 {[%clk 0:00:06]} 97. Kf8 {[%clk 0:00:09]}  Qf6+ {[%clk 0:00:06]} 98. Ke8 {[%clk 0:00:10]}  Qe5+ {[%clk 0:00:04]} 99. Kf7 {[%clk 0:00:09]}  Qf5+ {[%clk 0:00:05]} 100. Ke8 {[%clk 0:00:08]}  Qg6+ {[%clk 0:00:04]} 101. Kf8 {[%clk 0:00:08]}  Qh6 {[%clk 0:00:04]} 102. Kf7 {[%clk 0:00:08]}  Qh7 {[%clk 0:00:04]} 103. Kf8 {[%clk 0:00:08]}  Qf5+ {[%clk 0:00:04]} 104. Ke8 {[%clk 0:00:08]}  Qd7+ {[%clk 0:00:03]} 105. Kf8 {[%clk 0:00:08]}  Qd6+ {[%clk 0:00:03]} 106. Kf7 {[%clk 0:00:08]}  Qf4+ {[%clk 0:00:04]} 107. Ke8 {[%clk 0:00:08]}  Qe5+ {[%clk 0:00:04]} 108. Kf8 {[%clk 0:00:09]}  Qf6+ {[%clk 0:00:04]} 109. Ke8 {[%clk 0:00:09]}  Kd6 {[%clk 0:00:04]} 110. g8=Q {[%clk 0:00:08]}  Qe7# {[%clk 0:00:04]} 0-1


[Site "https://www.chess.com"]

[Event "Titled Tuesday Blitz August 31 2021"]
[White "Chernomordik, Pavel"]
[Black "Demin, Vladimir"]
[WhiteFideId "2804530"]
[BlackFideId "4167457"]
[WhiteElo "2256"]
[BlackElo "2543"]
[Result "1-0"]
[Round "09"]
[TimeControl "180+1"]
[Date "2021.08.31"]
[WhiteClock "0:00:39"]
[BlackClock "0:00:04"]

1. e4 {[%clk 0:03:00]}  Nf6 {[%clk 0:02:58]} 2. Nc3 {[%clk 0:02:59]}  d5 {[%clk 0:02:53]} 3. e5 {[%clk 0:02:59]}  Ne4 {[%clk 0:02:50]} 4. Nce2 {[%clk 0:02:58]}  c5 {[%clk 0:02:41]} 5. d3 {[%clk 0:02:53]}  Nxf2 {[%clk 0:02:30]} 6. Kxf2 {[%clk 0:02:53]}  Nc6 {[%clk 0:02:31]} 7. Nf3 {[%clk 0:02:52]}  Bg4 {[%clk 0:02:29]} 8. Bf4 {[%clk 0:02:48]}  e6 {[%clk 0:02:29]} 9. Ng3 {[%clk 0:02:43]}  h5 {[%clk 0:02:23]} 10. h3 {[%clk 0:02:36]}  h4 {[%clk 0:02:22]} 11. Ne2 {[%clk 0:02:26]}  Bxf3 {[%clk 0:02:06]} 12. gxf3 {[%clk 0:02:25]}  g5 {[%clk 0:02:05]} 13. Bh2 {[%clk 0:02:24]}  Bg7 {[%clk 0:01:58]} 14. d4 {[%clk 0:02:17]}  cxd4 {[%clk 0:01:54]} 15. Nxd4 {[%clk 0:02:08]}  Qb6 {[%clk 0:01:51]} 16. c3 {[%clk 0:02:07]}  Nxe5 {[%clk 0:01:50]} 17. Bb5+ {[%clk 0:01:52]}  Ke7 {[%clk 0:01:38]} 18. Re1 {[%clk 0:01:47]}  Ng6 {[%clk 0:01:23]} 19. Qa4 {[%clk 0:01:44]}  Nf4 {[%clk 0:01:00]} 20. Kf1 {[%clk 0:01:24]}  Bxd4 {[%clk 0:00:42]} 21. cxd4 {[%clk 0:01:19]}  a6 {[%clk 0:00:26]} 22. Qa3+ {[%clk 0:01:01]}  Kf6 {[%clk 0:00:26]} 23. Bd3 {[%clk 0:00:51]}  Qxd4 {[%clk 0:00:25]} 24. Rad1 {[%clk 0:00:51]}  Rhc8 {[%clk 0:00:19]} 25. Bg1 {[%clk 0:00:44]}  Qe5 {[%clk 0:00:03]} 26. Rxe5 {[%clk 0:00:43]}  Kxe5 {[%clk 0:00:04]} 27. Re1+ {[%clk 0:00:42]}  Kf6 {[%clk 0:00:04]} 28. Bd4+ {[%clk 0:00:41]}  e5 {[%clk 0:00:04]} 29. Bxe5+ {[%clk 0:00:40]}  Ke6 {[%clk 0:00:04]} 30. Bxf4+ {[%clk 0:00:39]} 1-0


[Site "https://www.chess.com"]